Cogmind - Beta 16.1 @@@ ROGUE MODE // 2026.03.05 @ 17:51:40 Player: Minty Result: Destroyed by 8R-AWN with 8R-AWN's Boregun Performance ------------- Evolutions (0) 0 Regions Visited (1) 200 Robots Destroyed (2) 10 Value Destroyed (91) 91 Prototype IDs (0) 0 Alien Tech Used (0) 0 Bonus (-24) -24 TOTAL SCORE: 277 Bonus ------- Friendly Fire -24 Cogmind --------- Core Integrity 0/250 Matter 195/300 Energy 219/250 System Corruption 0% Temperature Hot (246) Movement Core (150) Ox2 Location -10/Materials Parts ------- > --- POWER (1) -------- Ion Engine > --- PROPULSION (2) --- Aluminum Leg > --- UTILITY (2) ------ Improved Heat Sink > --- WEAPON (2) ------- Small Laser Small Laser > --- INVENTORY (5) ---- Aluminum Leg Wheel Compact Wheel Peak State ------------ > --- POWER ------------ Light Ion Engine > --- PROPULSION ------- Aluminum Leg Aluminum Leg > --- UTILITY ---------- Improved Heat Sink Small Storage Unit > --- WEAPON ----------- Light Assault Rifle Light Assault Rifle > --- INVENTORY -------- Ion Engine Light Treads Light Treads Aluminum Leg Aluminum Leg Wheel Compact Wheel Light Cannon [Rating: 9] Favorites ----------- Power Ion Engine Engine Ion Engine Propulsion Aluminum Leg Treads Light Treads Leg Aluminum Leg Utility Small Storage Unit Device Improved Heat Sink Storage Small Storage Unit Weapon Light Assault Rifle Energy Gun Small Laser Ballistic Gun Light Assault Rifle Ballistic Cannon Light Cannon Build | -11 -10 ------- Run | Yrd Mat Slots Evolved . | . . Power . | . . Propulsion . | . . Utility . | . . Weapon . | . . Parts Attached 11 | . 11 Power 2 | . 2 Engine 2 | . 2 Core . | . . Reactor . | . . Propulsion 4 | . 4 Treads 2 | . 2 Leg 2 | . 2 Wheel . | . . Hover . | . . Flight . | . . Utility 1 | . 1 Device 1 | . 1 Storage . | . . Processor . | . . Hackware . | . . Protection . | . . Artifact . | . . Weapon 4 | . 4 Energy Gun 2 | . 2 Energy Cannon . | . . Ballistic Gun 1 | . 1 Ballistic Cannon 1 | . 1 Launcher . | . . Special Weapon . | . . Impact Weapon . | . . Slashing Weapon . | . . Piercing Weapon . | . . Special Melee Weapon . | . . Unidentified Prototypes . | . . Parts Lost 6 | . 6 Power . | . . Propulsion 3 | . 3 Utility . | . . Weapon 3 | . 3 Highest Loss Streak 5 | . 5 To Critical Strikes 4 | . 4 Average Backups 6 | 6 6 Power . | 1 . Propulsion 4 | 4 4 Utility . | . . Weapon . | 1 . Tool/Special . | . . Unused Backups 3 | . 3 Power 2 | . 2 Propulsion 1 | . 1 Utility . | . . Weapon . | . . Tool/Special . | . . Average Slot Usage (%) 87 | . 87 Engine 12 | . 12 Treads 9 | . 9 Leg 18 | . 18 Device 9 | . 9 Storage 10 | . 10 Energy Gun 5 | . 5 Ballistic Gun 18 | . 18 Ballistic Cannon 1 | . 1 Peak Build Rating 9 | 6 9 Average Rating 7 | 6 7 On Entrance 6 | 6 6 Avg Prop Armor Cover (%) 34 | . 34 Naked Turns . | . . Heaviest Build 14 | 10 14 Greatest Support 40 | 20 40 Greatest Overweight (x) . | . . Average Overweight (x) . | . . Largest Inventory Capacity 8 | 8 8 Average Capacity 7 | 8 7 Most Carried 8 | 6 8 Average Carried 6 | 6 6 Final Capacity 8 | 8 5 Final Carried 6 | 6 3 Class Distribution -------------------- 100% | Mutant Dominant Class ---------------- Mutant | -10/Materials Resources | -11 -10 ----------- Run | Yrd Mat Matter Collected 277 | 200 77 Remotely . | . . Salvage Created 79 | . 79 Parts 5 | . 5 Haulers Intercepted . | . . Recyclers Shooed 1 | . 1 Parts Field Recycled . | . . Retrieved Matter . | . . Parts Self-Destructed . | . . Prevented . | . . Parts Restored . | . . Kills | -11 -10 ------- Run | Yrd Mat Combat Hostiles Destroyed 2 | . 2 Guns 2 | . 2 Classes Destroyed 1 | . 1 Grunt 2 | . 2 Best Kill Streak 2 | . 2 Combat Bots Only 2 | . 2 Max Kills in Single Turn 1 | . 1 Gunslinging . | . . Exploded . | . . Melee . | . . Uniques/NPCs Destroyed . | . . Combat | -11 -10 -------- Run | Yrd Mat Hostile Shots Fired 80 | . 80 Missed 22 | . 22 Hits 58 | . 58 Projectile 58 | . 58 Critical Strikes 27 | . 27 Damage Taken 1076 | . 1076 Core 254 | . 254 Absorbed by Shields . | . . Core Remaining (%) 100 | 100 . Volleys Fired 56 | . 56 Largest 2 | . 2 Hottest 80 | . 80 Shots Fired 106 | . 106 Gun 93 | . 93 Cannon 13 | . 13 Launcher . | . . Special . | . . Kinetic 68 | . 68 Thermal 38 | . 38 Explosive . | . . Electromagnetic . | . . Robot Hit Streak 8 | . 8 Robot Miss Streak 4 | . 4 Penetration Max . | . . Secondary Targets . | . . Shots Hit Robots 79 | . 79 Core Hits 22 | . 22 Critical Kills . | . . Critical Parts Destroyed . | . . Critical Strikes . | . . Melee Attacks . | . . Impact . | . . Slashing . | . . Piercing . | . . Sneak Attacks . | . . Combat Hostiles . | . . Follow-up Attacks . | . . Damage Inflicted 817 | . 817 Guns 663 | . 663 Cannons 151 | . 151 Explosions . | . . Melee . | . . Ramming 3 | . 3 Kinetic 503 | . 503 Thermal 311 | . 311 Explosive . | . . Electromagnetic . | . . Impact . | . . Slashing . | . . Piercing . | . . Highest Corruption . | . . Average Corruption . | . . Corruption Purged . | . . Corruption Blocked . | . . Overload Shots . | . . Overflow Damage . | . . Projectiles . | . . Explosions . | . . Melee . | . . Knockbacks 3 | . 3 Impact . | . . Kinetic 3 | . 3 Secondary . | . . Self-Inflicted Damage . | . . Shots . | . . Rammed 1 | . 1 Targets Rammed 1 | . 1 Kicked . | . . Crushed . | . . Highest Temperature 246 | . 246 Average Temperature 97 | . 97 Received Heat Transfer 48 | . 48 Effects 1 | . 1 Energy Bleed 1 | . 1 Siege Activations . | . . Martial Activations . | . . Shielding Activations . | . . Robots Disrupted . | . . Combat Hostiles . | . . Robots Corrupted . | . . Combat Hostiles . | . . Parts Fried . | . . Impact Corruptions . | . . Robots Melted . | . . Combat Hostiles . | . . Parts Melted . | . . Heat Transferred 206 | . 206 Parts Sabotaged . | . . Parts Stolen . | . . Parts Stripped . | . . Power Chain Reactions . | . . Alert | -11 -10 ------- Run | Yrd Mat Maximum Alert Level . | . . Low Security (%) 100 | 100 100 Level 1 . | . . Level 2 . | . . Level 3 . | . . Level 4 . | . . Level 5 . | . . High Security . | . . Max Security . | . . Peak Influence 40 | . 40 Initial . | . . Average 7 | . 7 Influence Increases 65 | . 65 Destroy 0b10 Robot/C 40 | . 40 Destroy Leader 10 | . 10 Disable Machine 15 | . 15 Influence Decreases 65 | . 65 Time Decay 60 | . 60 Lost Part 5 | . 5 Squads Dispatched . | . . Investigation . | . . Extermination . | . . Reinforcement . | . . Assault . | . . Garrison . | . . Intercept . | . . Searches Triggered . | . . Construction Impeded . | . . Haulers Reinforced . | . . Active Scanning Responses . | . . Cargo Convoy Interrupts . | . . Stealth | -11 -10 --------- Run | Yrd Mat Distress Signals 2 | . 2 Communications Jammed . | . . Distress Signals . | . . Times Spotted 8 | . 8 Peak Tracking Total 3 | . 3 Tactical Retreats 1 | . 1 Traps | -11 -10 ------- Run | Yrd Mat Traps Triggered 1 | . 1 Indirectly . | . . Trap Hack Attempts . | . . Triggered . | . . Disarmed . | . . Reprogrammed . | . . Reused . | . . Traps Extracted . | . . Installed . | . . Triggered . | . . Machines | -11 -10 ---------- Run | Yrd Mat Machines Disabled 1 | . 1 Max in Single Turn 1 | . 1 Machines Repaired . | . . Machines Dismantled . | . . Machines Sabotaged . | . . Overloaded Fab Kills . | . . Hacking | -11 -10 --------- Run | Yrd Mat Machines Accessed . | . . Terminals . | . . Fabricators . | . . Repair Stations . | . . Recycling Units . | . . Scanalyzers . | . . Garrison Access . | . . Total Hacks . | . . Successful . | . . Failed . | . . Catastrophic . | . . Database Lockouts . | . . Manual . | . . Terminals . | . . Fabricators . | . . Repair Stations . | . . Recycling Units . | . . Scanalyzers . | . . Garrison Access . | . . Terminal Hacks . | . . Fabricator Hacks . | . . Repair Station Hacks . | . . Recycling Unit Hacks . | . . Scanalyzer . | . . Garrison Access Hacks . | . . Unauthorized Hacks . | . . Terminals . | . . Fabricators . | . . Repair Stations . | . . Recycling Units . | . . Scanalyzers . | . . Garrison Access . | . . Data Cores Recovered . | . . Used . | . . Hacking Detections . | . . Full Trace Events . | . . Feedback Events . | . . Feedback Blocked . | . . Robot Schematics Acquired . | . . Robots Built . | . . Authchips . | . . Time . | . . Total Robot Build Rating . | . . Part Schematics Acquired . | . . Parts Built . | . . Authchips . | . . Time . | . . Total Part Build Rating . | . . Part Studies Acquired . | . . Parts Repaired . | . . Time . | . . Parts Recycled . | . . Recycled Matter . | . . Retrieved Matter . | . . Retrieved Components . | . . Parts Scanalyzed . | . . Part Schematics Acquired . | . . Parts Damaged . | . . Bothacking | -11 -10 ------------ Run | Yrd Mat Used RIF Installer . | . . Robots Hacked . | . . Non-combat . | . . Combat . | . . Robot Hacks Applied . | . . Relay Couplers Released . | . . Fabnet Peak Effective % . | . . Robots Rewired . | . . Allies Hacked . | . . Hacks Repelled . | . . Allies | -11 -10 -------- Run | Yrd Mat Total Allies . | . . Largest Group . | . . Highest-Rated Group . | . . Highest-Rated Ally . | . . Total Orders . | . . Ally Attacks . | . . Total Damage . | . . Kills . | . . Allies Corrupted . | . . Allies Melted . | . . Intel | -11 -10 ------- Run | Yrd Mat Active Infowar (turns) . | . . Robot Analysis Total . | . . Derelict Logs Recovered . | . . Drone Launches . | . . Drone Recoveries . | . . Exploration | -11 -10 ------------- Run | Yrd Mat Turns Passed 308 | 7 301 Spaces Moved 118 | 6 112 Core 28 | . 28 Treads 1 | . 1 Legs 89 | 6 83 Wheels . | . . Hover . | . . Flight . | . . Fastest Speed 50 | 120 50 Average Speed 103 | 120 102 Slowest Speed 160 | 120 160 Overloaded Moves . | . . Propulsion Burnouts . | . . Robots Hopped . | . . Potential Cave-ins . | . . Cave-ins Triggered . | . . Exploration Rate (%) 13 | 2 25 Regions Visited 1 Branch Regions . Pre-discovered Areas . | . . Known Exits Taken . | . . Unknown Exits Taken 1 | 1 . Scrap Searched . | . . Spaces Dug . | . . Terrain Destroyed . | . . Melee . | . . Projectile . | . . AOE . | . . Terrain Rammed . | . . Walls Destroyed . | . . Machines Disabled . | . . Actions | -11 -10 --------- Run | Yrd Mat Total 209 | 5 204 Wait 16 | . 16 Move 117 | 5 112 Hop . | . . Pick Up 2 | . 2 Fast Attach 4 | . 4 Attach 5 | . 5 Detach 1 | . 1 Swap 2 | . 2 Drop 5 | . 5 Fire 56 | . 56 Melee . | . . Ram . | . . Kick . | . . Crush 1 | . 1 Escape Stasis . | . . Rewire . | . . Trap . | . . Miscellaneous . | . . Route ------- -11/Scrapyard -10/Materials (discovered 1 exit: [*Min]) History --------- Turn | Location | Event 1 | -11/Scrapyard | Discovered new exit (range 2) 8 | -11/Scrapyard | Entered Materials 123 | -10/Materials | Met 8R-AWN 164 | -10/Materials | Attacked by 8R-AWN 205 | -10/Materials | Core integrity fell below 50% 239 | -10/Materials | Discovered new exit (range 14) 287 | -10/Materials | Lost 5 parts (2n3w) 287 | -10/Materials | Core integrity fell below 20% 302 | -10/Materials | Build established: Mutant 309 | -10/Materials | Destroyed by 8R-AWN with 8R-AWN's Boregun Last Messages --------------- 00288_ Wall collapses. 00288_ U-05 Engineer lays Concrete. 00289_ K-01 Serf collects debris. 00291_ HV Slug penetrates Wall. 00291_ Penetrated by HV Slug. 00291_ HV Slug penetrates Wall. 00291_ U-05 Engineer lays Concrete. 00295_ Penetrated by HV Slug. 00295_ HV Slug penetrates Wall. 00295_ K-01 Serf collects debris. 00296_ U-05 Engineer lays Concrete. 00299_ Penetrated by HV Slug. 00300_ U-05 Engineer lays Concrete. 00303_ Penetrated by HV Slug. 00303_ Lgt. Treads destroyed. 00303_ Penetrated by HV Slug. 00303_ U-05 Engineer lays Concrete. 00304_ Overheating: Energy bleed (-38). 00304_ U-05 Engineer lays Concrete. 00309_ Penetrated by HV Slug. Map ----- +----------------------------------------------------+ | ??????????????????????????????????????????? | | ??????????????????????????????????????????? | | ??????????????????????????????????????????? | | ??????????????????????????????????????????? | | ??????????????????????????????????????????? | | ?????????####?????????????????????????????? | | ?????????#"""#????????????????????????????? | | ???????##"!!!"??????????#?????????????????? | | ???????#"" "????????? #?????????????????? | | ???????# ????????# #?????????????????? | | ???????# < ???#??? #?????????????????? | | ???????# ???;### +?????????????????? | | ???????# ??? #?????????????????? | | ????????# ??# #?????????????????? | | ?????????# #### #?????????????????? | | ?????????# #?????????????????? | | ?????????# +?????????????????? | | ?????????# [[ #?????????????????? | | ????????## ;#?#+##????????????????? | | ????????# ;? ?????????????????? | | ????????# ; ""???????????????????? | | ????????# ; "????????????????????? | | ????????# %; ?????????????????????? | | ????????# !|#??????????????????????? | | ????????######## !%######?????????????????? | | ??????????###! @! #?????????????????? | | ??????????#;! #?????????????????? | | ??????????##! #?????????????????? | | ???????????#! = = #?????????????????? | | ???????????#! ! %! u #?????????????????? | | ???????????##! #?????????????????? | | ?????????####### g +?????????????????? | | ?? [ + %! #?????????????????? | | ????????#########+#######?????????????????? | | ????????# *%=!%*#???????????????????? | | ?? " " ==!=%#???????????????????? | | ?????## # """"" "" "!#???????????????????? | | ????????# """"" "" ""%#???????????????????? | | ??????????""""" " """ #???????????????????? | | ????????# #???????????????????? | | ??????????#####"####+##???????????????????? | | ??????????# # #???????#????????????? | | ??????????# # #?????? #????????????? | | ??????????# """ # ######+########+#????? | | ??????????#"" # %*= =%! %* ???? | | ???????????""""" + ![[ = =[ ???? | | ??????????#""""" # =%* ???? | | ??????????# """ ###+########T###???????? | | ??????????# = #????????????????? | | ??????????# #????????????????? | +----------------------------------------------------+ Best States ------------- Heat Dissipation 39 Energy Generation 10 Energy Capacity 250 Matter Stores 300 Matter Capacity 300 Sight Range 16 Terrain Scan Density 10 Evasion (%) 55 Recoil Reduction 2 Item Schematics ----------------- None Robot Schematics ------------------ None Fabricated ------------ Nothing Repaired ---------- Nothing Studied --------- None Alien Tech Used ----------------- None Achievements -------------- None Challenges ------------ None Game ------ Seed StorageShiftDeflector Manual? 0 Play Time 00:06:08 Cumulative 1259.8 hours Start 2026.03.05 @ 17:48:19 End 2026.03.05 @ 17:51:40 Sessions 1 Manual Loads 0 Difficulty Rogue Special Mode None Game No. 1546 Rogue 1262 Adventurer 124 Explorer 160 Win Type - Total 61 Types 47/0/8/4/1/0/0/1/0/0 Lore% 93 Gallery% 83 Achievement% 68 Wizard Run 0 Options --------- Layout 0 ASCII 0 Keyboard 1 Movement Numpad Keybinds 0 Fullscreen 2 Font 18/X11 Map View 76x50 Zoom Use 0% Tactical HUD 1 Map Filters NONE Filters NONE Steam 1 RUN: a8db436f-99ab-4b9d-9564-1986b22d0679